Cogmind - Beta 17 @@@ ROGUE MODE // 2026.06.30 @ 18:45:05 Player: Lolterzard Result: Destroyed by DP-ADP(R) with Subdweller Machine Gun Performance ------------- Evolutions (0) 0 Regions Visited (2) 400 Robots Destroyed (31) 155 Value Destroyed (525) 525 Prototype IDs (0) 0 Alien Tech Used (0) 0 Bonus (0) 0 TOTAL SCORE: 1080 Bonus ------- None Cogmind --------- Core Integrity 0/250 Matter 224/300 Energy 250/250 System Corruption 0% Temperature Cool (0) Movement Rolling (155) Ox5 Location -10/Subcaves Parts ------- > --- POWER (1) -------- Ion Engine > --- PROPULSION (2) --- Light Treads Wheel > --- UTILITY (2) ------ High-capacity Storage Unit Tractor Beam > --- WEAPON (2) ------- Light Cannon Light Cannon > --- INVENTORY (20) --- Subdweller Power Source Medium Matter Pod (0) Scrap Shield Heavy Assault Rifle Heavy Assault Rifle Heavy Assault Rifle Heavy Assault Rifle Shotgun Shotgun Shotgun Shotgun Shotgun Light Cannon Light Cannon Light Cannon Light Cannon Grenade Launcher Grenade Launcher Peak State ------------ > --- POWER ------------ Ion Engine > --- PROPULSION ------- Wheel Wheel > --- UTILITY ---------- High-capacity Storage Unit Seismic Detector > --- WEAPON ----------- Light Cannon Light Cannon > --- INVENTORY -------- Ion Engine Subdweller Power Source Light Treads Medium Matter Pod Tractor Beam Heavy Assault Rifle Heavy Assault Rifle Heavy Assault Rifle Heavy Assault Rifle Shotgun Shotgun Shotgun Shotgun Shotgun Light Cannon Light Cannon Light Cannon Light Cannon Grenade Launcher Grenade Launcher [Rating: 10] Favorites ----------- Power Ion Engine Engine Ion Engine Propulsion Light Treads Treads Light Treads Wheel Wheel Utility High-capacity Storage Unit Device Seismic Detector Storage High-capacity Storage Unit Weapon Light Assault Rifle Energy Gun Small Laser Ballistic Gun Light Assault Rifle Ballistic Cannon Light Cannon Launcher Grenade Launcher Build | -11 -10 -10 ------- Run | Yrd Mat Sub Slots Evolved . | . . . Power . | . . . Propulsion . | . . . Utility . | . . . Weapon . | . . . Parts Attached 23 | 7 13 3 Power 4 | 1 2 1 Engine 4 | 1 2 1 Core . | . . . Reactor . | . . . Propulsion 7 | 2 4 1 Treads 3 | 2 . 1 Leg . | . . . Wheel 4 | . 4 . Hover . | . . . Flight . | . . . Utility 4 | 2 1 1 Device 2 | 1 . 1 Storage 2 | 1 1 . Processor . | . . . Hackware . | . . . Protection . | . . . Artifact . | . . . Weapon 8 | 2 6 . Energy Gun 1 | 1 . . Energy Cannon . | . . . Ballistic Gun 3 | 1 2 . Ballistic Cannon 2 | . 2 . Launcher 2 | . 2 . Special Weapon . | . . . Impact Weapon . | . . . Slashing Weapon . | . . . Piercing Weapon . | . . . Special Melee Weapon . | . . . Unidentified Prototypes . | . . . Parts Lost 11 | . 8 3 Power 2 | . 1 1 Propulsion 5 | . 4 1 Utility 1 | . . 1 Weapon 3 | . 3 . Highest Loss Streak 5 | . 5 2 To Critical Strikes . | . . . Average Backups 13 | 3 13 18 Power 1 | . 1 1 Propulsion 1 | 1 1 . Utility 2 | . 2 1 Weapon 8 | . 7 15 Tool/Special . | . . . Unused Backups 21 | . 4 17 Power 1 | . . 1 Propulsion . | . . . Utility 3 | . 1 2 Weapon 17 | . 3 14 Tool/Special . | . . . Average Slot Usage (%) 89 | . 87 97 Engine 13 | . 13 12 Treads 10 | . 11 6 Wheel 8 | . 5 20 Device 14 | . 14 14 Storage 14 | . 14 14 Ballistic Gun 15 | . 19 . Ballistic Cannon 9 | . 4 28 Launcher 1 | . 2 . Peak Build Rating 10 | 7 9 10 Average Rating 7 | 6 7 9 On Entrance 5 | . 7 9 Avg Prop Armor Cover (%) 12 | 30 . 10 Naked Turns . | . . . Heaviest Build 52 | 13 52 52 Greatest Support 40 | 40 40 20 Greatest Overweight (x) 17 | 3 17 5 Average Overweight (x) 2 | . 2 3 Largest Inventory Capacity 20 | 8 20 20 Average Capacity 19 | 7 19 20 Most Carried 20 | 5 20 20 Average Carried 14 | 3 13 19 Final Capacity 20 | 8 20 20 Final Carried 20 | 5 20 19 Class Distribution -------------------- 87% | Mutant 12% | Scavenger-Mutant Dominant Class ---------------- Mutant | -10/Materials Mutant | -10/Subcaves Resources | -11 -10 -10 ----------- Run | Yrd Mat Sub Matter Collected 905 | 274 436 195 Remotely 147 | . . 147 Salvage Created 743 | 115 610 18 Parts 73 | 6 62 5 Haulers Intercepted 2 | . 2 . Recyclers Shooed 5 | 1 4 . Parts Field Recycled . | . . . Retrieved Matter . | . . . Parts Self-Destructed 8 | . . 8 Prevented . | . . . Parts Restored . | . . . Kills | -11 -10 -10 ------- Run | Yrd Mat Sub Combat Hostiles Destroyed 19 | . 17 2 Guns 12 | . 12 . Cannons 2 | . . 2 AOE 5 | . 5 . Classes Destroyed 8 | 2 5 1 Builder 5 | . 5 . Tunneler 1 | 1 . . Hauler 2 | . 2 . Recycler 3 | 1 2 . Operator 1 | . 1 . Swarmer 9 | . 9 . Grunt 8 | . 8 . Subdweller 2 | . . 2 Best Kill Streak 6 | 1 6 1 Combat Bots Only 4 | . 4 1 Max Kills in Single Turn 1 | 1 1 1 Gunslinging . | . . . Exploded 1 | . 1 . Melee . | . . . Uniques/NPCs Destroyed . | . . . Combat | -11 -10 -10 -------- Run | Yrd Mat Sub Hostile Shots Fired 151 | . 121 30 Missed 40 | . 30 10 Hits 111 | . 91 20 Projectile 111 | . 91 20 AOE 2 | . . 2 Critical Strikes 2 | . 1 1 Damage Taken 1497 | . 1012 485 Core 258 | . 158 100 Absorbed by Shields . | . . . Core Remaining (%) 100 | 100 . . Volleys Fired 115 | 4 91 20 Largest 2 | 2 2 2 Hottest 60 | 60 60 60 Shots Fired 228 | 8 180 40 Gun 161 | 8 153 . Cannon 52 | . 12 40 Launcher 15 | . 15 . Special . | . . . Kinetic 200 | 4 156 40 Thermal 13 | 4 9 . Explosive 15 | . 15 . Electromagnetic . | . . . Robot Hit Streak 12 | 3 12 5 Robot Miss Streak 5 | 3 5 4 Penetration Max . | . . . Secondary Targets 3 | . 3 . Max Gunslinging Chain 1 | . 1 . Shots Hit Robots 121 | 4 95 22 Core Hits 57 | 3 50 4 Critical Kills . | . . . Critical Parts Destroyed . | . . . Critical Strikes . | . . . Melee Attacks . | . . . Impact . | . . . Slashing . | . . . Piercing . | . . . Sneak Attacks . | . . . Combat Hostiles . | . . . Follow-up Attacks . | . . . Damage Inflicted 1592 | 39 1328 225 Guns 723 | 39 684 . Cannons 329 | . 104 225 Explosions 540 | . 540 . Melee . | . . . Ramming . | . . . Kinetic 1006 | 15 766 225 Thermal 46 | 24 22 . Explosive 540 | . 540 . Electromagnetic . | . . . Impact . | . . . Slashing . | . . . Piercing . | . . . Highest Corruption . | . . . Average Corruption . | . . . Corruption Purged . | . . . Corruption Blocked . | . . . Overload Shots . | . . . Overflow Damage 6 | . 6 . Projectiles 6 | . 6 . Explosions . | . . . Melee . | . . . Knockbacks 2 | . 1 1 Impact . | . . . Kinetic 2 | . 1 1 Secondary . | . . . Self-Inflicted Damage . | . . . Shots . | . . . Rammed . | . . . Targets Rammed . | . . . Kicked . | . . . Crushed . | . . . Highest Temperature 40 | 20 40 . Average Temperature 12 | 12 12 . Received Heat Transfer 468 | . 414 54 Siege Activations . | . . . Martial Activations . | . . . Shielding Activations . | . . . Robots Disrupted . | . . . Combat Hostiles . | . . . Robots Corrupted . | . . . Combat Hostiles . | . . . Parts Fried . | . . . Impact Corruptions . | . . . Robots Melted . | . . . Combat Hostiles . | . . . Parts Melted 1 | . . 1 Heat Transferred 100 | 50 50 . Parts Sabotaged . | . . . Parts Stolen . | . . . Parts Stripped . | . . . Power Chain Reactions . | . . . Alert | -11 -10 -10 ------- Run | Yrd Mat Sub Maximum Alert Level . | . . . Low Security (%) 100 | 100 100 . Level 1 . | . . . Level 2 . | . . . Level 3 . | . . . Level 4 . | . . . Level 5 . | . . . High Security . | . . . Max Security . | . . . Peak Influence 185 | 5 185 . Initial . | . . . Average 69 | . 76 . Influence Increases 614 | 10 604 . Destroy 0b10 Robot/C 340 | . 340 . Destroy 0b10 Robot/NC 60 | 10 50 . Destroy Leader 74 | . 74 . Destroy Structure 50 | . 50 . Lose Combat Pursuer 90 | . 90 . Influence Decreases 614 | 10 466 138 Entered New Map 67 | . . 67 Time Decay 507 | 10 436 61 Lost Part 40 | . 30 10 Squads Dispatched 4 | . 4 . Investigation 2 | . 2 . Extermination . | . . . Reinforcement 2 | . 2 . Assault . | . . . Garrison . | . . . Intercept . | . . . Searches Triggered . | . . . Construction Impeded . | . . . Haulers Reinforced . | . . . Active Scanning Responses . | . . . Cargo Convoy Interrupts . | . . . Stealth | -11 -10 -10 --------- Run | Yrd Mat Sub Distress Signals 1 | . 1 . Communications Jammed . | . . . Distress Signals . | . . . Times Spotted 41 | . 37 4 Peak Tracking Total 7 | . 7 1 Tactical Retreats 3 | . 3 . Traps | -11 -10 -10 ------- Run | Yrd Mat Sub Traps Triggered 2 | . 2 . Indirectly . | . . . Trap Hack Attempts . | . . . Triggered . | . . . Disarmed . | . . . Reprogrammed . | . . . Reused . | . . . Traps Extracted . | . . . Installed . | . . . Triggered . | . . . Machines | -11 -10 -10 ---------- Run | Yrd Mat Sub Machines Disabled . | . . . Max in Single Turn . | . . . Machines Repaired . | . . . Machines Dismantled . | . . . Machines Sabotaged . | . . . Overloaded Fab Kills . | . . . Hacking | -11 -10 -10 --------- Run | Yrd Mat Sub Machines Accessed 1 | . 1 . Terminals 1 | . 1 . Fabricators . | . . . Repair Stations . | . . . Recycling Units . | . . . Scanalyzers . | . . . Garrison Access . | . . . Total Hacks 3 | . 3 . Successful . | . . . Failed 3 | . 3 . Catastrophic . | . . . Database Lockouts . | . . . Manual . | . . . Terminals 3 | . 3 . Fabricators . | . . . Repair Stations . | . . . Recycling Units . | . . . Scanalyzers . | . . . Garrison Access . | . . . Terminal Hacks . | . . . Fabricator Hacks . | . . . Repair Station Hacks . | . . . Recycling Unit Hacks . | . . . Scanalyzer . | . . . Garrison Access Hacks . | . . . Unauthorized Hacks . | . . . Terminals . | . . . Fabricators . | . . . Repair Stations . | . . . Recycling Units . | . . . Scanalyzers . | . . . Garrison Access . | . . . Data Cores Recovered 1 | . 1 . Used 1 | . 1 . Hacking Detections 1 | . 1 . Full Trace Events 1 | . 1 . Feedback Events . | . . . Feedback Blocked . | . . . Robot Schematics Acquired . | . . . Robots Built . | . . . Authchips . | . . . Time . | . . . Total Robot Build Rating . | . . . Part Schematics Acquired . | . . . Parts Built . | . . . Authchips . | . . . Time . | . . . Total Part Build Rating . | . . . Part Studies Acquired . | . . . Parts Repaired . | . . . Time . | . . . Parts Recycled . | . . . Recycled Matter . | . . . Retrieved Matter . | . . . Retrieved Components . | . . . Parts Scanalyzed . | . . . Part Schematics Acquired . | . . . Parts Damaged . | . . . Bothacking | -11 -10 -10 ------------ Run | Yrd Mat Sub Used RIF Installer . | . . . Robots Hacked . | . . . Non-combat . | . . . Combat . | . . . Robot Hacks Applied . | . . . Relay Couplers Released . | . . . Fabnet Peak Effective % . | . . . Robots Rewired . | . . . Allies Hacked . | . . . Hacks Repelled . | . . . Allies | -11 -10 -10 -------- Run | Yrd Mat Sub Total Allies . | . . . Largest Group . | . . . Highest-Rated Group . | . . . Highest-Rated Ally . | . . . Total Orders . | . . . Ally Attacks . | . . . Total Damage . | . . . Kills . | . . . Allies Corrupted . | . . . Allies Melted . | . . . Intel | -11 -10 -10 ------- Run | Yrd Mat Sub Active Infowar (turns) 1572 | 16 1394 162 Seismic 1572 | 16 1394 162 Robot Analysis Total . | . . . Derelict Logs Recovered . | . . . Drone Launches . | . . . Drone Recoveries . | . . . Exploration | -11 -10 -10 ------------- Run | Yrd Mat Sub Turns Passed 1922 | 143 1394 385 Spaces Moved 804 | 81 510 213 Core 29 | 21 8 . Treads 295 | 60 235 . Legs . | . . . Wheels 480 | . 267 213 Hover . | . . . Flight . | . . . Fastest Speed 50 | 50 110 110 Average Speed 187 | 144 216 134 Slowest Speed 900 | 200 900 155 Overloaded Moves . | . . . Propulsion Burnouts . | . . . Robots Hopped . | . . . Potential Cave-ins . | . . . Cave-ins Triggered . | . . . Exploration Rate (%) 36 | 5 89 14 Regions Visited 2 Branch Regions 1 Pre-discovered Areas 1 | . . 1 Known Exits Taken . | . . . Unknown Exits Taken 2 | 1 1 . Scrap Searched . | . . . Spaces Dug . | . . . Terrain Destroyed 44 | . 44 . Melee . | . . . Projectile . | . . . AOE 44 | . 44 . Terrain Rammed . | . . . Walls Destroyed . | . . . Machines Disabled . | . . . Actions | -11 -10 -10 --------- Run | Yrd Mat Sub Total 1019 | 96 652 271 Wait 35 | . 3 32 Move 802 | 80 509 213 Hop . | . . . Pick Up 33 | 5 26 2 Fast Attach 10 | 7 3 . Attach 10 | . 7 3 Detach 2 | . 2 . Swap 3 | . 3 . Drop 9 | . 8 1 Fire 115 | 4 91 20 Melee . | . . . Ram . | . . . Kick . | . . . Crush . | . . . Escape Stasis . | . . . Rewire . | . . . Trap . | . . . Miscellaneous . | . . . Route ------- -11/Scrapyard -10/Materials (discovered 5 exits: [*Mat x3] / [*Min] / [*Sub]) -10/Subcaves History --------- Turn | Location | Event 63 | -11/Scrapyard | Discovered new exit (range 15) 144 | -11/Scrapyard | Entered Materials 317 | -10/Materials | Build established: Mutant 626 | -10/Materials | Discovered new exit (range 16) 732 | -10/Materials | Discovered new exit (range 14) 1075 | -10/Materials | Lost 5 parts (1p2n2w) 1273 | -10/Materials | Core integrity fell below 50% 1419 | -10/Materials | Discovered new exit (range 10) 1465 | -10/Materials | Discovered new exit (range 10) 1503 | -10/Materials | Discovered new exit (range 10) 1538 | -10/Materials | Entered Subcaves 1539 | -10/Subcaves | Approached by a straggling Scientist 1707 | -10/Subcaves | Core integrity fell below 20% 1764 | -10/Subcaves | Learned location of Zion (-6) 1764 | -10/Subcaves | Met a Zionite searching for "candidates" 1923 | -10/Subcaves | Destroyed by DP-ADP(R) with Subdweller Machine Gun Last Messages --------------- 01720_ Acquired 3 matter. 01721_ Acquired 9 matter. 01723_ Acquired 2 matter. 01723_ Acquired 12 matter. 01734_ Acquired Scrap Shield. 01759_ Acquired 8 matter. 01759_ MM-3A8(z): "She is not going to be happy we haven't found any suitable candidates yet." 01764_ MM-3A8(z): "Hey you! It's really dangerous down here, I feel that you could die at any moment. For your health and safety might I suggest a trip to Zion?" World map updated: -6/Zion. 01862_ Acquired 6 matter. 01862_ Acquired 12 matter. 01862_ Acquired 11 matter. 01865_ Acquired 5 matter. 01884_ MM-3A8(z) destroyed. 01884_ 8R-C05(R) destroyed. 01885_ Acquired 37 matter. 01910_ Acquired 12 matter. Map ----- +----------------------------------------------------+ | ?????## ##?###??## ##?? ????????????????? | | ?????# ### #### #?? #????????????????? | | ?????## #?? #????????????????? | | ???# ##?? #????????????????? | | ## #??# #????????????????? | | # #### ### #????????????????? | | #??# #????????????????? | | ### ##??# #????????????????? | | ##?# ??## #????????????????? | | ??? ### #????????????????? | | #??# ### ### #????????????????? | | #???# #?# ##????????????????? | | #????## ##?# #?????????????????? | | ???# "" ##??# ##????????????????? | | ?? ??? " ????### ##???????????????? | | ??????????"" ## ??????# #???????????????? | | ??????????" #### ?????## ##???????????????? | | ?????????# ## ???##?????# ####????????????????? | | ????????? ??#? ??????????## #???????????????????? | | ??????????????????????????# ##??????????????????? | | ??????????????????????????# #??????????????????? | | ??????????????????????????## #??????????????????? | | ???????????????????????????# ##?????????????????? | | ???????????????????#####?### ##????????????????? | | ????????????????#### ### ##???????????????? | | ???????????????## @ #???????????????? | | ?????????"#" ## #???????????????? | | ???????? """ R # #???????????????? | | ?????????# " ## ## #?####??????????? | | ?????????# ##""####### ## #??????????? | | ?????????##??#" "??????## ; "##?????????? | | ?????????????##""????#### ## #?????????? | | ?????????????? ????# ###; #?????????? | | ????????????? ?????## ##?##; #?????????? | | ???????????? ??????#"##???#;;; "#?????????? | | ???????????? ## ?????#""#????##; #?????????? | | ???????????????????? ""#????## ] "#?????????? | | ???????????????????% ""##??###" ! * "#?????????? | | ??????????????????? ##????#""" #"##?????????? | | ??????????????????? ?????###""""" ###??????????? | | ??????????????????#?????# "" #????????????? | | ??????????????????????" "" #????????????? | | ??????????????????????? "" ##????????????? | | ?????????????????????????##" # ####?????????????? | | ??????????????????????????## ## ?????????????????? | | ??????????????????????????# ? ?????????????????? | | ??????????????????????????##? ?????????????????? | | ???????????????????????????? ??????????????????? | | ????????????????????????????###??????????????????? | | ?????????????????????????????????????????????????? | +----------------------------------------------------+ Best States ------------- Heat Dissipation 25 Energy Generation 10 Energy Capacity 250 Matter Stores 300 Matter Capacity 300 Sight Range 16 Terrain Scan Density 10 Evasion (%) 50 Recoil Reduction 2 Item Schematics ----------------- None Robot Schematics ------------------ None Fabricated ------------ Nothing Repaired ---------- Nothing Studied --------- None Alien Tech Used ----------------- None Achievements -------------- None Challenges ------------ None Game ------ Seed AblativeCoreLink Manual? 0 Play Time 00:10:19 Cumulative 64.9 hours Start 2026.06.30 @ 18:36:36 End 2026.06.30 @ 18:45:05 Sessions 1 Manual Loads 0 Difficulty Rogue Special Mode None Game No. 138 Rogue 138 Adventurer 0 Explorer 0 Win Type - Total 0 Types 0/0/0/0/0/0/0/0/0/0 Lore% 31 Gallery% 29 Achievement% 25 Wizard Run 0 Options --------- Layout 0 ASCII 0 Keyboard 0 Movement Mouse Keybinds 0 Fullscreen 2 Font 24/Smallcaps Map View 76x50 Zoom Use 0% Tactical HUD 1 Map Filters NONE Filters NONE Steam 1 RUN: 5ff5c71f-ef01-4d6e-9ecd-7c5e9c70e99f